bitfinex-derivatives/quotes_ETHF0:USTF0_20230402
["timestamp","ask_amount","ask_price","bid_price","bid_amount"]
[1680429806204,4.19225495,1821.6,1821.5,1.56755696]
[1680429807004,4.19225495,1821.6,1821.5,3.00281601]
[1680429807505,4.76839742,1821.6,1821.5,3.00281601]
[1680429807909,4.19225495,1821.6,1821.5,3.00281601]
[1680429808207,4.19225495,1821.6,1821.5,0.56755696]
[1680429808599,4.19225495,1821.6,1821.4,2.00281601]
[1680429808805,4.19225495,1821.6,1821.5,0.56755696]
[1680429809208,4.19225495,1821.6,1821.5,1.43525905]
[1680429809510,4.19225495,1821.6,1821.5,0.56755696]
[1680429809706,4.19225495,1821.6,1821.5,1.0]
[1680429809916,4.19225495,1821.6,1821.5,1.56755696]
[1680429823119,4.19225495,1821.6,1821.5,0.56755696]
[1680429823417,4.19225495,1821.6,1821.4,2.00281601]
[1680429823618,0.57624045,1821.5,1821.4,2.00281601]
[1680429824013,0.71259199,1821.5,1821.4,2.00281601]
[1680429826026,0.71259199,1821.5,1821.4,0.56755696]
[1680429830317,0.71259199,1821.5,1821.3,1.56755696]
[1680429830518,0.71259199,1821.5,1821.4,0.56755696]
[1680429832515,0.71259199,1821.5,1821.4,1.43839459]
[1680429832716,0.71259199,1821.5,1821.4,2.00595155]
[1680429832922,0.71259199,1821.5,1821.4,0.56755696]
[1680429834232,0.71259199,1821.5,1821.4,1.43839435]
[1680429834421,0.71259199,1821.5,1821.4,0.56755696]
[1680429836229,0.71259199,1821.5,1821.4,1.43840568]
[1680429836437,0.71259199,1821.5,1821.4,2.00596264]
[1680429838924,0.71259199,1821.5,1821.4,2.00599363]
[1680429870160,1.57556226,1821.5,1821.4,2.00599363]
[1680429870359,1.04214531,1821.5,1821.4,1.71825823]
[1680429871062,1.04214531,1821.5,1821.4,1.15070127]
[1680429880769,4.24994531,1821.5,1821.4,1.15070127]
[1680429892572,4.24994531,1821.5,1821.3,0.56976476]
[1680429892573,4.24994531,1821.5,1821.3,1.15070127]
[1680429892774,0.57589112,1821.4,1821.3,1.72055704]
[1680429892975,0.75515597,1821.4,1821.3,1.72055704]
[1680429893480,0.75515597,1821.4,1821.3,0.56985577]
[1680429899282,0.75515597,1821.4,1821.3,1.15014287]
[1680429899481,0.75515597,1821.4,1821.3,1.71999864]
[1680429909189,3.96295597,1821.4,1821.3,1.71999864]
[1680429910088,3.96295597,1821.4,1821.3,0.56985577]
[1680429914891,3.96295597,1821.4,1821.3,2.00829244]
[1680429918898,4.25003512,1821.4,1821.3,0.56985577]
[1680429919096,4.25003512,1821.4,1821.2,2.00829244]
[1680429919388,4.25003512,1821.4,1821.3,0.56985577]
[1680429919592,4.25003512,1821.4,1821.2,2.00829244]
[1680429919800,0.57619562,1821.3,1821.2,2.00829244]
[1680429919995,0.78554515,1821.3,1821.2,2.00829244]
[1680429922197,0.20934953,1821.3,1821.2,2.00829244]
[1680429922389,0.78554515,1821.3,1821.2,2.00829244]
[1680429927003,0.77788422,1821.3,1821.2,2.00829244]
[1680429932107,3.98568422,1821.3,1821.2,2.00829244]
[1680429933408,0.77788422,1821.3,1821.2,2.00829244]
[1680429933710,3.98568422,1821.3,1821.2,2.00829244]
[1680429934606,4.27245887,1821.3,1821.2,1.15063016]
[1680429938711,4.84832549,1821.3,1821.2,1.15063016]
[1680429939815,4.90620277,1821.3,1821.2,1.15063016]
[1680429940910,4.0432325,1821.3,1821.1,1.15063016]
[1680429942512,4.0432325,1821.3,1821.2,1.15063016]
[1680429942713,4.0432325,1821.3,1821.1,2.15063016]
[1680429942909,4.0432325,1821.3,1821.2,1.15063016]
[1680429943218,4.0432325,1821.3,1821.1,2.15063016]
[1680429943410,4.0432325,1821.3,1821.1,1.15063016]
[1680429943611,4.0432325,1821.3,1821.2,0.8623175]
[1680429943612,4.33033615,1821.3,1821.2,0.8623175]
[1680429945419,4.33033615,1821.3,1821.2,1.43721049]
[1680429946721,4.33033615,1821.3,1821.2,0.57489299]
[1680429946922,4.33033615,1821.3,1821.2,1.43721049]
[1680429948017,4.33033615,1821.3,1821.2,0.57489299]
[1680429948615,4.33033615,1821.3,1821.2,1.43721049]
[1680429948817,4.33033615,1821.3,1821.2,0.57489299]
[1680429949923,4.33033615,1821.3,1821.2,1.43721049]
[1680429950124,4.33033615,1821.3,1820.9,0.86240126]
[1680429950125,1.0,1821.2,1820.9,0.86240126]
[1680429950321,4.3592275,1821.0,1820.7,0.86240126]
[1680429950529,3.78351558,1820.8,1820.7,0.86240126]
[1680429950921,3.2078,1820.8,1820.6,1.86240126]
[1680429952522,3.78351558,1821.0,1820.7,0.86240126]
[1680429952736,3.2078,1820.8,1820.7,0.86240126]
[1680429955223,3.2078,1820.8,1820.6,1.0]
[1680429955224,3.2078,1820.8,1820.6,1.86240126]
[1680429956030,3.2078,1820.8,1820.6,0.86240126]
[1680429962740,0.32585142,1820.7,1820.5,0.86240126]
[1680429962945,3.78351558,1820.6,1820.2,1.86240126]
[1680429963150,3.2078,1820.3,1820.2,1.0]
[1680429963447,3.2078,1820.5,1820.2,1.86240126]
[1680429963844,3.2078,1820.3,1820.2,1.86240126]
[1680429964545,3.56343842,1820.3,1820.2,1.86240126]
[1680429965043,3.2078,1820.3,1820.2,1.86240126]
[1680429965345,3.56343894,1820.3,1820.2,1.86240126]
[1680429967247,3.56343894,1820.3,1820.2,1.0]
[1680429967553,3.56343894,1820.3,1820.2,1.86240126]
[1680429968652,3.56343894,1820.3,1820.2,1.0]
[1680429968850,3.56343894,1820.3,1820.2,0.86240126]
[1680429969050,3.56343894,1820.3,1820.1,1.86240126]
[1680429980357,3.2078,1820.3,1820.1,1.86240126]
[1680429980957,0.35564919,1820.2,1820.1,1.86240126]
[1680429982660,0.35564919,1820.2,1820.1,1.0]
[1680429984661,0.35564919,1820.2,1820.1,2.1464291]
[1680429988667,0.35564919,1820.2,1820.1,2.5778336]
[1680429990865,0.35564919,1820.2,1820.1,1.4314045]
[1680429991664,0.35564919,1820.2,1820.1,2.86402959]
[1680429994171,3.2078,1820.5,1820.1,1.4314045]
[1680429994366,3.2078,1820.5,1820.4,0.86188401]
[1680429994565,3.2078,1820.7,1820.4,1.86188401]
[1680429994774,13.88351558,1820.7,1820.5,0.86188401]
[1680429995268,3.78351558,1820.7,1820.5,0.86188401]
[1680430000666,0.57571558,1820.6,1820.4,1.5814287]
[1680430000873,3.2078,1820.5,1820.4,1.14921207]
[1680430001076,3.2078,1820.5,1820.4,1.5815466]
[1680430001865,3.44095688,1820.5,1820.4,1.5815466]
[1680430002176,3.44095688,1820.5,1820.4,1.58331621]
[1680430002379,3.44095688,1820.5,1820.4,1.58332066]
[1680430002674,3.44095688,1820.5,1820.4,1.86884962]
[1680430003571,3.44095688,1820.5,1820.4,0.43233453]
[1680430003877,0.23315688,1820.5,1820.4,1.86884962]
[1680430008180,3.44095688,1820.5,1820.4,1.86884962]
[1680430008577,0.23315688,1820.5,1820.4,1.86884962]
[1680430009975,3.44095688,1820.5,1820.4,1.86884962]
[1680430014770,3.44095688,1820.5,1820.4,1.43651509]
[1680430021687,0.23315688,1820.5,1820.4,1.43651509]
[1680430027393,3.44095688,1820.5,1820.4,1.43651509]
[1680430034499,4.01667246,1820.5,1820.4,1.43651509]
[1680430058406,4.01042662,1820.5,1820.4,1.43651509]
[1680430067322,0.80262662,1820.5,1820.4,1.43651509]
[1680430067617,4.01042662,1820.5,1820.4,1.43651509]
[1680430077515,4.01042662,1820.5,1820.4,1.43397848]
[1680430079626,4.01042662,1820.5,1820.4,0.43233453]
[1680430079820,0.22691104,1820.5,1820.4,0.43233453]
[1680430083925,3.78351558,1820.7,1820.4,0.43233453]
[1680430084121,0.20011091,1820.6,1820.4,0.43233453]
[1680430084326,0.20011091,1820.6,1820.4,7.64928496]
[1680430084532,3.78351558,1820.7,1820.6,1.0]
[1680430084729,3.78351558,1820.7,1820.6,1.43233453]
[1680430085733,3.2078,1820.7,1820.6,1.43233453]
[1680430087430,3.2078,1820.7,1820.6,0.43233453]
[1680430089629,3.2078,1820.7,1820.6,1.15167599]
[1680430089833,3.2078,1820.7,1820.6,1.58401052]
[1680430097731,3.2078,1820.7,1820.6,1.15167599]
[1680430097935,3.4079189,1820.7,1820.6,1.15167599]
[1680430098436,3.4079189,1820.7,1820.6,1.58401052]
[1680430099636,3.4079189,1820.7,1820.6,1.15167599]
[1680430107841,3.4079189,1820.7,1820.6,1.5849981]
[1680430108339,3.4079189,1820.7,1820.6,1.15167599]
[1680430108742,3.4079189,1820.7,1820.6,2.15167599]
[1680430109537,3.4079189,1820.7,1820.6,2.58500809]
[1680430110044,3.4079189,1820.7,1820.6,2.15167599]
[1680430110544,3.4079189,1820.7,1820.6,2.58503676]
[1680430113547,3.4079189,1820.7,1820.6,1.58503676]
[1680430115444,3.4079189,1820.7,1820.6,2.58503676]
[1680430117246,3.4079189,1820.7,1820.6,1.43336077]
[1680430117948,3.4079189,1820.7,1820.6,0.43336077]
[1680430119350,3.4079189,1820.7,1820.6,1.58492955]
[1680430119549,3.4079189,1820.7,1820.6,1.58509449]
[1680430119752,3.4079189,1820.7,1820.6,0.43336077]
[1680430121952,3.4079189,1820.7,1820.6,1.87250704]
[1680430122353,3.4079189,1820.7,1820.6,0.43336077]
[1680430122648,3.4079189,1820.7,1820.6,1.87250704]
[1680430123148,3.98363448,1820.7,1820.6,1.87250704]
[1680430135666,3.98363448,1820.7,1820.6,1.43914627]
[1680430137873,4.27149227,1820.7,1820.6,1.15302746]
[1680430155186,4.26596637,1820.7,1820.6,1.15302746]
[1680430157678,14.36596637,1820.7,1820.6,1.15302746]
[1680430158094,14.6538205,1820.7,1820.6,0.57617733]
[1680430158287,15.74802569,1820.7,1820.5,0.57617733]
[1680430158489,15.06679286,1820.7,1820.5,0.57617733]
[1680430158686,2.43928437,1820.6,1820.4,1.44044333]
[1680430158992,4.35936729,1820.5,1820.4,0.57617733]
[1680430159196,5.35936729,1820.5,1820.4,0.57007767]
[1680430159492,4.07074068,1820.5,1820.4,0.57007767]
[1680430161191,4.07074068,1820.5,1820.2,2.01729346]
[1680430161387,3.2078,1820.3,1820.2,0.864266]
[1680430167297,3.2078,1820.3,1820.1,0.864266]
[1680430173005,0.31734154,1820.2,1820.1,0.864266]
[1680430173400,13.1078,1820.3,1820.1,0.864266]
[1680430173599,0.31734219,1820.2,1820.1,0.864266]
[1680430195132,0.31734219,1820.2,1820.0,1.15302746]
[1680430195324,3.2078,1820.1,1820.0,1.15302746]
[1680430195630,3.52516174,1820.1,1820.0,1.15302746]
[1680430197136,3.52516174,1820.1,1820.0,1.87289036]
[1680430197734,3.52516174,1820.1,1820.0,1.43914627]
[1680430199339,3.52516174,1820.1,1820.0,1.87289036]
[1680430199638,3.52516174,1820.1,1820.0,1.43914627]
[1680430203533,3.52516174,1820.1,1820.0,0.43374409]
[1680430203738,3.52516174,1820.1,1820.0,1.0]
[1680430203935,3.52516174,1820.1,1820.0,1.43374409]
[1680430204742,3.52516174,1820.1,1820.0,0.43374409]
[1680430205442,3.52516174,1820.1,1819.9,2.15969452]
[1680430209346,3.52516174,1820.1,1820.0,1.0]
[1680430209645,3.52516174,1820.1,1820.0,1.43374409]
[1680430210345,3.2078,1820.1,1820.0,1.43374409]
[1680430211245,3.52037,1820.1,1820.0,1.43374409]
[1680430211947,3.52037,1820.1,1820.0,0.43374409]
[1680430213441,3.52037,1820.1,1819.9,2.15969452]
[1680430213842,3.52037,1820.1,1820.0,1.0]
[1680430214145,3.52037,1820.1,1820.0,1.43374409]
[1680430216449,0.31257,1820.1,1820.0,1.43374409]
[1680430216851,0.57503128,1820.2,1820.0,1.43374409]
[1680430217048,0.57503128,1820.2,1820.1,1.87519414]
[1680430224452,0.84896198,1820.2,1820.1,1.87519414]
[1680430228057,0.84896198,1820.2,1820.1,1.44145005]
[1680430282410,0.84896198,1820.2,1820.1,1.87519414]
[1680430282604,0.84896198,1820.2,1820.1,1.44145005]
[1680430285511,10.64896198,1820.2,1820.1,1.44145005]
[1680430291512,11.51190266,1820.2,1820.1,1.44145005]
[1680430291923,10.93687138,1820.2,1820.1,1.44145005]
[1680430297327,1.71289335,1820.2,1820.1,1.44145005]
[1680430297625,1.13687138,1820.2,1820.1,1.44145005]
[1680430298027,1.71289334,1820.2,1820.1,1.44145005]
[1680430298530,1.71289607,1820.2,1820.1,1.44145005]
[1680430303826,1.13687138,1820.2,1820.1,1.44145005]
[1680430304824,1.71286154,1820.2,1820.1,1.44145005]
[1680430309735,1.13687138,1820.2,1820.1,0.43374409]
[1680430309936,1.13192125,1820.2,1820.1,1.15316295]
[1680430326548,1.26898057,1820.2,1820.1,0.86461877]
[1680430326945,2.42054786,1820.2,1820.1,0.86461877]
[1680430327748,1.26898057,1820.2,1820.1,0.86461877]
[1680430328854,2.42054786,1820.2,1820.1,0.86461877]
[1680430329955,1.26898057,1820.2,1820.1,0.86461877]
[1680430330855,0.26898057,1820.2,1820.1,0.86461877]
[1680430331158,1.26898057,1820.2,1820.1,0.86461877]
[1680430331659,0.26898057,1820.2,1820.1,0.86461877]
[1680430331861,1.13220981,1820.2,1820.1,0.86461877]
[1680430332060,2.13220981,1820.2,1820.1,0.86461877]
[1680430332264,1.13220981,1820.2,1820.1,0.86461877]
[1680430332563,2.13220981,1820.2,1820.1,0.86461877]
[1680430332765,1.13220981,1820.2,1820.1,0.86461877]
[1680430346369,0.26898057,1820.2,1820.1,0.86461877]
[1680430346579,1.26898057,1820.2,1820.1,0.86461877]
[1680430346775,0.26898057,1820.2,1820.1,0.86461877]
[1680430347176,1.26898057,1820.2,1820.1,0.86461877]
[1680430348476,0.26898057,1820.2,1820.1,0.86461877]
[1680430352573,1.13225433,1820.2,1820.0,1.15316295]
[1680430352778,0.57554206,1820.1,1820.0,1.15316295]
[1680430353280,0.84896814,1820.1,1820.0,1.15316295]
[1680430353485,0.84896814,1820.1,1820.0,0.44346941]
[1680430353674,0.84896814,1820.1,1819.9,1.44145005]
[1680430353875,0.84896814,1820.1,1820.0,1.15272276]
[1680430354484,4.05676814,1820.1,1820.0,1.15272276]
[1680430356576,4.05676814,1820.1,1820.0,0.44346941]
[1680430356873,4.05676814,1820.1,1820.0,1.15291187]
[1680430357480,4.05676814,1820.1,1820.0,0.44346941]
[1680430357869,4.05676814,1820.1,1819.9,1.44145005]
[1680430359875,0.84896814,1820.1,1819.9,1.44145005]
[1680430362280,0.57554206,1820.0,1819.9,1.44145005]
[1680430362674,0.84897655,1820.0,1819.9,1.44145005]
[1680430363380,4.05677655,1820.0,1819.9,1.44145005]
[1680430369587,0.84897655,1820.0,1819.9,1.44145005]
[1680430422129,0.84897655,1820.0,1819.9,1.44178668]
[1680430430838,1.71225031,1820.0,1819.9,1.44178668]
[1680430431540,1.13670825,1820.0,1819.9,0.44346941]
[1680430431836,1.13670825,1820.0,1819.8,1.88525609]
[1680430432138,1.13670825,1820.0,1819.9,1.88525609]
[1680430432439,1.13670825,1820.0,1819.9,1.44178668]
[1680430432734,1.71248291,1820.0,1819.9,1.44178668]
[1680430432926,0.84920915,1820.0,1819.9,1.44178668]
[1680430433636,1.13670825,1820.0,1819.9,1.44178668]
[1680430434936,1.71247307,1820.0,1819.9,1.44178668]
[1680430435134,1.13670825,1820.0,1819.9,0.44346941]
[1680430435337,1.13670825,1820.0,1819.9,1.88525609]
[1680430435539,1.71245076,1820.0,1819.9,1.44178668]
[1680430436542,1.13670825,1820.0,1819.9,1.44178668]
[1680430436742,1.7124501,1820.0,1819.9,1.44178668]
[1680430438042,1.13670825,1820.0,1819.9,1.59672308]
[1680430438343,1.13670825,1820.0,1819.9,0.44346941]
[1680430438741,1.13670825,1820.0,1819.8,1.88525609]
[1680430439044,3.78351938,1819.9,1819.8,1.88525609]
[1680430439245,4.05702181,1819.9,1819.8,1.88525609]
[1680430445151,4.04935764,1819.9,1819.8,1.88525609]
[1680430445553,4.04935764,1819.9,1819.8,1.44178668]
[1680430449457,4.16225406,1819.9,1819.8,1.44178668]
[1680430456859,4.16225406,1819.9,1819.8,0.44346941]
[1680430457258,4.16225406,1819.9,1819.8,1.15283732]
[1680430457463,4.16225406,1819.9,1819.8,2.15283732]
[1680430457659,4.16225406,1819.9,1819.8,1.59630673]
[1680430457961,4.16225406,1819.9,1819.8,1.15283732]
[1680430458862,4.16225406,1819.9,1819.7,1.88525609]
[1680430459354,4.16225406,1819.9,1819.8,1.15279197]
[1680430484981,5.02552782,1819.9,1819.8,1.15279197]
[1680430486276,4.16225406,1819.9,1819.8,1.15279197]
[1680430486678,5.02552782,1819.9,1819.8,1.15279197]
[1680430493290,5.02552782,1819.9,1819.7,1.44178668]
[1680430493481,5.02552782,1819.9,1819.7,1.88525609]
[1680430494089,4.45747261,1819.9,1819.8,1.15320333]
[1680430494491,4.45747261,1819.9,1819.8,0.44346941]
[1680430495179,4.45747261,1819.9,1819.7,1.88525609]
[1680430495382,4.45747261,1819.9,1819.8,0.44346941]
[1680430495588,4.45747261,1819.9,1819.7,1.88525609]
[1680430501291,4.45747261,1819.9,1819.8,1.88525609]
[1680430501486,4.45747261,1819.9,1819.8,1.44178668]
[1680430519505,4.45747261,1819.9,1819.7,1.88525609]
[1680430519807,4.45747261,1819.9,1819.8,0.44346941]
[1680430520006,4.45747261,1819.9,1819.7,1.88525609]
[1680430520205,4.45747261,1819.9,1819.8,0.44346941]
[1680430520905,4.45747261,1819.9,1819.7,1.88525609]
[1680430521105,4.45747261,1819.9,1819.8,0.44346941]
[1680430521403,1.24967261,1819.9,1819.8,1.44178668]
[1680430523006,4.45747261,1819.9,1819.8,1.44178668]
[1680430529209,4.45747261,1819.9,1819.8,1.88525609]
[1680430529608,4.45747261,1819.9,1819.8,1.44178668]
[1680430532505,0.38639885,1819.9,1819.8,0.44346941]
[1680430532704,0.38639885,1819.9,1819.6,2.16941984]
[1680430532906,0.38639885,1819.9,1819.7,4.2078]
[1680430533204,0.86327376,1820.1,1819.8,1.44346941]
[1680430533412,0.86327376,1820.1,1820.0,1.15303556]
[1680430534413,4.07107376,1820.1,1820.0,1.15303556]
[1680430536015,4.07107376,1820.1,1819.9,1.15303556]
[1680430536215,4.07107376,1820.1,1819.9,1.60240451]
[1680430536712,0.38481771,1820.0,1819.9,1.60240451]
[1680430537115,0.38481771,1820.0,1819.9,1.60218317]
[1680430541716,0.37724677,1820.0,1819.9,1.8906634]
[1680430541914,0.37724677,1820.0,1819.9,0.44936895]
[1680430542413,0.37724677,1820.0,1819.9,1.1526393]
[1680430542609,0.37724677,1820.0,1819.9,1.60200825]
[1680430543516,0.37724677,1820.0,1819.9,0.44936895]
[1680430544111,0.37724677,1820.0,1819.9,1.15254395]
[1680430544315,0.37724677,1820.0,1819.9,1.6019129]
[1680430546713,0.37724677,1820.0,1819.9,0.44936895]
[1680430547623,0.37724677,1820.0,1819.9,1.1524131]
[1680430547825,0.37724677,1820.0,1819.9,1.60178205]
[1680430548526,0.37724677,1820.0,1819.9,1.1524131]
[1680430549425,0.37724677,1820.0,1819.9,1.60157824]
[1680430550726,0.37724677,1820.0,1819.9,1.1524131]
[1680430551423,0.37724677,1820.0,1819.9,1.60157795]
[1680430555429,0.37724677,1820.0,1819.9,1.60157901]
[1680430556133,0.37724677,1820.0,1819.9,1.1524131]
[1680430565234,0.95281622,1820.0,1819.9,1.1524131]
[1680430572237,0.95281622,1820.0,1819.9,0.44918827]
[1680430572431,0.95281622,1820.0,1819.9,1.0]
[1680430572632,0.95281622,1820.0,1819.9,1.44918827]
[1680430573639,0.95281622,1820.0,1819.9,0.44918827]
[1680430573837,0.95281622,1820.0,1819.8,1.89048272]
[1680430574234,0.95281622,1820.0,1819.9,1.1529836]
[1680430574440,0.95281622,1820.0,1819.9,0.44918827]
[1680430574639,0.95281622,1820.0,1819.8,1.89048272]
[1680430574835,1.81608998,1820.0,1819.9,0.44918827]
[1680430575138,1.81608998,1820.0,1819.8,1.89048272]
[1680430575334,0.95281622,1820.0,1819.9,1.89048272]
[1680430575742,1.81608998,1820.0,1819.8,1.89048272]
[1680430575942,1.81608998,1820.0,1819.9,0.44918827]
[1680430576241,1.24052053,1820.0,1819.9,1.15312569]
[1680430576440,1.24052053,1820.0,1819.9,1.15313006]
[1680430576636,1.81632119,1820.0,1819.9,1.44918827]
[1680430576834,0.95304743,1820.0,1819.9,2.89048272]
[1680430577438,0.95304743,1820.0,1819.9,1.44918827]
[1680430577831,0.37724677,1820.0,1819.9,2.89051904]
[1680430579342,0.95304743,1820.0,1819.9,2.89051904]
[1680430580931,0.37724677,1820.0,1819.9,2.89051904]
[1680430590952,0.37724677,1820.0,1819.9,1.89051904]
[1680430591153,0.37724677,1820.0,1819.9,1.44133077]
[1680430608857,0.95304743,1820.0,1819.9,1.44133077]
[1680430611666,0.95304743,1820.0,1819.9,1.89051904]
[1680430611868,0.95304743,1820.0,1819.9,1.44133077]
[1680430617477,0.37724677,1820.0,1819.9,1.44133077]
[1680430617678,0.95304743,1820.0,1819.9,1.44133077]
[1680430620773,0.95304743,1820.0,1819.9,1.44138812]
[1680430620975,0.37724677,1820.0,1819.9,1.44137834]
[1680430621179,0.95304743,1820.0,1819.9,1.44137834]
[1680430622374,0.95304743,1820.0,1819.8,0.44918827]
[1680430622577,0.95304743,1820.0,1819.9,0.44918827]
[1680430622872,0.95304743,1820.0,1819.8,0.44918827]
[1680430623072,0.95304743,1820.0,1819.9,0.44918827]
[1680430623272,0.95304743,1820.0,1819.8,0.44918827]
[1680430623880,0.95304743,1820.0,1819.9,1.44151056]
[1680430624080,0.95304743,1820.0,1819.9,0.44918827]
[1680430624377,0.95304743,1820.0,1819.8,0.44918827]
[1680430624571,0.95304743,1820.0,1819.9,0.44918827]
[1680430625274,0.95304743,1820.0,1819.8,0.44918827]
[1680430625483,0.95304743,1820.0,1819.9,1.89069942]
[1680430626180,0.95304743,1820.0,1819.9,1.44151115]
[1680430640890,0.95304743,1820.0,1819.9,1.89069942]
[1680430641085,0.95304743,1820.0,1819.9,1.44151115]
[1680430645197,10.75304743,1820.0,1819.9,1.44151115]
[1680430647304,10.75304743,1820.0,1819.8,1.44151115]
[1680430647493,3.2078,1819.9,1819.8,1.44151115]
[1680430647693,3.59180436,1819.9,1819.8,1.44151115]
[1680430653306,3.59180436,1819.9,1819.7,0.44918827]
[1680430653498,0.38400436,1819.9,1819.8,0.44918827]
[1680430653698,3.59180436,1819.9,1819.7,0.44918827]
[1680430653999,3.59180436,1819.9,1819.8,0.44918827]
[1680430654198,3.59180436,1819.9,1819.7,0.44918827]
[1680430654492,3.59180436,1819.9,1819.8,0.44918827]
[1680430655107,3.59180436,1819.9,1819.7,0.44918827]
[1680430655299,3.59180436,1819.9,1819.8,0.44918827]
[1680430656106,3.59180436,1819.9,1819.7,0.44918827]
[1680430656306,3.59180436,1819.9,1819.8,0.44918827]
[1680430657306,3.59180436,1819.9,1819.7,0.44918827]
[1680430657507,3.59180436,1819.9,1819.8,0.44918827]
[1680430657803,3.59180436,1819.9,1819.7,0.44918827]
[1680430658103,3.59180436,1819.9,1819.8,0.44918827]
[1680430658304,3.59180436,1819.9,1819.7,0.44918827]
[1680430665106,0.38400436,1819.9,1819.7,0.44918827]
[1680430668513,0.38400436,1819.9,1819.7,2.1751387]
[1680430676417,0.38400436,1819.9,1819.8,1.44918827]
[1680430681121,0.38400436,1819.9,1819.8,0.44918827]
[1680430681525,0.38400436,1819.9,1819.7,2.1751387]
[1680430693342,3.2078,1819.8,1819.6,1.72595043]
[1680430693547,3.2078,1819.8,1819.7,1.44183213]
[1680430693548,4.16765999,1819.8,1819.7,1.44183213]
[1680430694044,4.16765999,1819.8,1819.7,1.90049253]
[1680430696250,4.16765999,1819.8,1819.7,1.61121319]
[1680430696750,3.59185933,1819.8,1819.7,0.4586604]
[1680430698044,3.59185933,1819.8,1819.7,1.61102473]
[1680430700448,3.59185933,1819.8,1819.7,1.15236433]
[1680430703049,0.38405933,1819.8,1819.7,3.59419646]
[1680430703354,0.38405933,1819.8,1819.7,2.90049253]
[1680430703651,0.57580066,1819.9,1819.7,1.4586604]
[1680430703854,0.57580066,1819.9,1819.7,1.15198886]
[1680430704042,0.38407188,1819.8,1819.7,2.15198886]
[1680430704350,0.38407188,1819.8,1819.7,2.61014047]
[1680430708755,0.38407188,1819.8,1819.7,1.61014047]
[1680430709348,3.59187188,1819.8,1819.7,1.61014047]
[1680430709543,3.59187188,1819.8,1819.7,1.15198886]
[1680430730274,0.38407188,1819.8,1819.7,0.45815161]
[1680430730471,0.38407188,1819.8,1819.6,1.89998374]
[1680430730773,3.59187188,1819.8,1819.7,0.45815161]
[1680430731075,3.59187188,1819.8,1819.6,1.89998374]
[1680430731275,3.59187188,1819.8,1819.7,0.45815161]
[1680430731475,3.59187188,1819.8,1819.7,1.15230924]
[1680430732068,3.59187188,1819.8,1819.7,0.45815161]
[1680430732271,3.59187188,1819.8,1819.6,1.89998374]
[1680430734078,3.59187188,1819.8,1819.7,1.44183213]
[1680430736269,4.16767254,1819.8,1819.7,1.44183213]
[1680430752085,0.95987254,1819.8,1819.7,1.44183213]
[1680430753087,4.16767254,1819.8,1819.7,1.44183213]
[1680430770906,4.16767254,1819.8,1819.7,1.89998374]
[1680430771408,4.16767254,1819.8,1819.7,1.44183213]
[1680430777304,4.16767254,1819.8,1819.7,1.89998374]
[1680430778819,4.16767254,1819.8,1819.7,1.44183213]
[1680430780911,4.16767254,1819.8,1819.7,1.89998374]
[1680430783119,4.16767254,1819.8,1819.7,1.44183213]
[1680430794927,0.95987254,1819.8,1819.7,0.45815161]
[1680430795316,0.38407188,1819.8,1819.7,0.45815161]
[1680430796825,0.95987254,1819.8,1819.7,0.45815161]
[1680430797426,0.38407188,1819.8,1819.7,0.45815161]
[1680430800632,0.95987254,1819.8,1819.7,1.44158387]
[1680430800934,0.95987254,1819.8,1819.7,1.89973548]
[1680430805837,0.38407188,1819.8,1819.7,1.89973548]
[1680430807836,0.95987254,1819.8,1819.7,1.89973548]
[1680430828043,0.95987254,1819.8,1819.7,1.44158387]
[1680430830757,0.95987254,1819.8,1819.7,1.89973548]
[1680430834556,0.38407188,1819.8,1819.7,0.45815161]
[1680430835553,0.95987254,1819.8,1819.7,0.45815161]
[1680430844866,0.38407188,1819.8,1819.7,0.45815161]
[1680430855573,0.95987254,1819.8,1819.7,0.45815161]
[1680430855871,0.95987254,1819.8,1819.7,1.44165606]
[1680430856068,0.38407188,1819.8,1819.7,0.45815161]
[1680430859679,0.95987254,1819.8,1819.7,0.45815161]
[1680430859875,0.38407188,1819.8,1819.7,0.45815161]
[1680430861075,0.95987254,1819.8,1819.7,0.45815161]
[1680430861375,0.38407188,1819.8,1819.7,0.45815161]
[1680430863181,0.95987254,1819.8,1819.7,0.45815161]
[1680430863381,0.95987254,1819.8,1819.7,1.44165499]
[1680430863581,0.95987254,1819.8,1819.7,1.8998066]
[1680430863882,0.38407188,1819.8,1819.7,0.45815161]
[1680430864680,0.95987254,1819.8,1819.7,1.44164657]
[1680430864883,0.38407188,1819.8,1819.7,0.45815161]
[1680430865380,0.95987254,1819.8,1819.7,0.45815161]
[1680430866487,0.38407188,1819.8,1819.7,0.45815161]
[1680430866779,0.95987254,1819.8,1819.7,0.45815161]
[1680430880898,0.95987254,1819.8,1819.6,0.45815161]
[1680430881092,0.95987254,1819.8,1819.7,0.45815161]
[1680430890701,0.38407188,1819.8,1819.7,0.45815161]
[1680430891298,0.95987254,1819.8,1819.7,0.45815161]
[1680430899199,0.95987254,1819.8,1819.6,1.0]
[1680430899200,0.95987254,1819.8,1819.6,3.18410204]
[1680430899406,0.95987254,1819.8,1819.7,0.45815161]
[1680430906009,0.38407188,1819.8,1819.7,0.45815161]
[1680430906405,0.95987254,1819.8,1819.7,0.45815161]
[1680430907011,0.95987254,1819.8,1819.6,3.18410204]
[1680430907206,0.95987254,1819.8,1819.7,0.45815161]
[1680430907405,0.38407188,1819.8,1819.7,0.45815161]
[1680430908612,0.95987254,1819.8,1819.7,0.45815161]
[1680430908911,0.38407188,1819.8,1819.7,0.45815161]
[1680430909106,0.95987254,1819.8,1819.7,0.45815161]
[1680430909314,0.38407188,1819.8,1819.7,0.45815161]
[1680430911314,0.95987254,1819.8,1819.7,0.45815161]
[1680430912015,0.38407188,1819.8,1819.7,0.45815161]
[1680430912417,0.95987254,1819.8,1819.7,0.45815161]
[1680430914310,0.38407188,1819.8,1819.7,0.45815161]
[1680430915219,0.95987254,1819.8,1819.7,0.45815161]
[1680430915515,0.38407188,1819.8,1819.7,0.45815161]
[1680430915716,0.95987254,1819.8,1819.6,0.45815161]
[1680430915916,0.95987254,1819.8,1819.7,0.45815161]
[1680430916117,0.38407188,1819.8,1819.7,0.45815161]
[1680430917116,0.38407188,1819.8,1819.6,2.18410204]
[1680430917517,0.95987254,1819.8,1819.7,0.45815161]
[1680430917915,0.95987254,1819.8,1819.6,0.45815161]
[1680430918214,0.95987254,1819.8,1819.7,0.45815161]
[1680430918410,0.95987254,1819.8,1819.6,0.45815161]
[1680430918613,0.95987254,1819.8,1819.7,0.45815161]
[1680430918814,0.95987254,1819.8,1819.6,0.45815161]
[1680430936427,0.95987254,1819.8,1819.7,0.45815161]
[1680430936627,0.95987254,1819.8,1819.5,2.18410204]
[1680430936832,0.95987254,1819.8,1819.6,0.45815161]
[1680430937033,0.95987254,1819.8,1819.7,0.45815161]
[1680430937332,0.95987254,1819.8,1819.5,2.18410204]
[1680430937527,0.95987254,1819.8,1819.6,0.45815161]
[1680430937828,0.95987254,1819.8,1819.7,0.45815161]
[1680430938134,0.95987254,1819.8,1819.5,2.18410204]
[1680430938333,0.95987254,1819.8,1819.6,0.45815161]
[1680430938627,0.95987254,1819.8,1819.7,0.45815161]